[Event "4NCL Div 2 2024-25"]
[Site "England"]
[Date "2025.04.06"]
[Round "8.6"]
[White "Pozimski, Szymon"]
[Black "Starley, Robert"]
[Result "1/2-1/2"]
[Annotator "ChessBase"]
[ECO "E11"]
[WhiteElo "2003"]
[BlackElo "2036"]
[PlyCount "285"]
[EventDate "2024.11.23"]
[EventType "team-tourn"]
[EventCountry "ENG"]
[SourceTitle "playchess.com"]
[Source "ChessBase"]
[SourceQuality "1"]
[TimeControl "40/6000+30:3000+30"]

1. c4 {[%emt 0:10:32]} Nf6 {[%emt 0:10:06]} 2. Nf3 {[%emt 0:00:03]} e6 {[%emt 0:00:07]} 3. g3 {[%emt 0:00:21]} d5 {[%emt 0:00:06]} 4. d4 {[%emt 0:00:02]} Bb4+ {[%emt 0:00:16]} 5. Bd2 {[%emt 0:00:07]} a5 {[%emt 0:00:14]} 6. Qc2 {[%emt 0:02:24]} O-O {[%emt 0:00:48]} 7. Bg2 {[%emt 0:00:13]} Nc6 {[%emt 0:00:19]} 8. O-O {[%emt 0:02:08]} Ne4 {[%emt 0:00:36]} 9. Rc1 {[%emt 0:17:11]} Nxd2 {[%emt 0:00:29]} 10. Nbxd2 {[%emt 0:00:09]} a4 {[%emt 0:00:22]} 11. e3 {[%emt 0:01:26]} Bd7 {[%emt 0:01:18]} 12. Ne1 {[%emt 0:04:46]} Ra5 {[%emt 0:03:37]} 13. Nd3 {[%emt 0:01:58]} Bd6 {[%emt 0:03:35]} 14. Qc3 {[%emt 0:02:27]} b6 {[%emt 0:01:25]} 15. b4 {[%emt 0:09:25]} axb3 {[%emt 0:01:48]} 16. Nxb3 {[%emt 0:02:44]} Ra7 {[%emt 0:16:44]} 17. cxd5 {[%emt 0:03:25]} Ne7 {[%emt 0:01:20]} 18. dxe6 {[%emt 0:00:36]} Bxe6 {[%emt 0:00:16]} 19. a4 {[%emt 0:05:43]} Qd7 {[%emt 0:01:45]} 20. a5 {[%emt 0:03:46]} Bxb3 {[%emt 0:01:05]} 21. Qxb3 {[%emt 0:00:14]} bxa5 {[%emt 0:00:42]} 22. Nc5 {[%emt 0:01:29]} Qd8 {[%emt 0:03:44]} 23. Qc3 {[%emt 0:05:56]} c6 {[%emt 0:01:15]} 24. Qc4 {[%emt 0:07:43]} Qa8 {[%emt 0:03:17]} 25. Ne6 {[%emt 0:03:02]} Rc8 {[%emt 0:10:11]} 26. Ng5 {[%emt 0:00:05]} Rf8 {[%emt 0:00:21]} 27. Bxc6 {[%emt 0:01:26]} Nxc6 {[%emt 0:00:10]} 28. Qxc6 {[%emt 0:00:01]} Qd8 {[%emt 0:00:29]} 29. Ne4 {[%emt 0:00:30]} Bb4 {[%emt 0:00:26]} 30. Nc5 {[%emt 0:02:35]} Rc7 {[%emt 0:06:06]} 31. Qa4 {[%emt 0:01:01]} Qc8 {[%emt 0:03:13]} 32. Nd3 {[%emt 0:05:33]} Rc3 {[%emt 0:04:00]} 33. Nc5 {[%emt 0:02:15]} Rxc1+ {[%emt 0:00:50]} 34. Rxc1 {[%emt 0:00:02]} g6 {[%emt 0:01:26]} 35. Nd3 {[%emt 0:04:41]} Qb7 {[%emt 0:00:56]} 36. Ne5 {[%emt 0:03:38]} Rc8 {[%emt 0:02:49]} 37. Rxc8+ {[%emt 0:07:33]} Qxc8 {[%emt 0:00:16]} 38. Qb5 {[%emt 0:00:16]} Qf5 {[%emt 0:02:32]} 39. Qe8+ {[%emt 0:01:09]} Kg7 {[%emt 0:00:19]} 40. e4 {[%emt 0:00:57]} Qxe4 {[%emt 0:09:56]} 41. Qxf7+ {[%emt 0:50:21]} Kh6 {[%emt 0:50:56]} 42. Qd7 {[%emt 0:00:00]} Qf5 {[%emt 0:00:00]} 43. Qc6 {[%emt 0:00:00]} Kg7 {[%emt 0:00:00]} 44. Kg2 {[%emt 0:00:00]} Qf6 {[%emt 0:00:00]} 45. Qc4 {[%emt 0:00:00]} Qe7 {[%emt 0:00:00]} 46. h3 {[%emt 0:00:00]} Bd6 {[%emt 0:00:00]} 47. Nf3 {[%emt 0:00:00]} Bb4 {[%emt 0:00:00]} 48. d5 {[%emt 0:00:00]} Qc5 {[%emt 0:00:00]} 49. Qe4 {[%emt 0:00:00]} Qe7 {[%emt 0:00:00]} 50. Qd4+ {[%emt 0:00:00]} Kg8 {[%emt 0:00:00]} 51. Qc4 {[%emt 0:00:16]} Kg7 {[%emt 0:00:00]} 52. Nd4 {[%emt 0:01:24]} Qe5 {[%emt 0:02:49]} 53. Ne6+ {[%emt 0:02:20]} Kf7 {[%emt 0:00:22]} 54. h4 {[%emt 0:00:27]} h6 {[%emt 0:02:11]} 55. Nf4 {[%emt 0:00:28]} Qd6 {[%emt 0:00:31]} 56. Qd4 {[%emt 0:00:37]} Qf6 {[%emt 0:01:52]} 57. Qa7+ {[%emt 0:00:33]} Qe7 {[%emt 0:00:11]} 58. Qb6 {[%emt 0:01:11]} Qd6 {[%emt 0:00:44]} 59. Qb7+ {[%emt 0:00:41]} Qe7 {[%emt 0:00:18]} 60. Qc8 {[%emt 0:00:37]} Qe8 {[%emt 0:03:25]} 61. Qc4 {[%emt 0:00:12]} Bd6 {[%emt 0:01:16]} 62. Ne6 {[%emt 0:00:22]} a4 {[%emt 0:04:52]} 63. Qc3 {[%emt 0:01:15]} Bf8 {[%emt 0:00:46]} 64. Qc7+ {[%emt 0:00:45]} Be7 {[%emt 0:01:48]} 65. Qf4+ {[%emt 0:00:27]} Bf6 {[%emt 0:00:23]} 66. Qxh6 {[%emt 0:00:27]} Ke7 {[%emt 0:00:32]} 67. Qe3 {[%emt 0:00:17]} Kf7 {[%emt 0:01:36]} 68. Qa7+ {[%emt 0:00:11]} Kg8 {[%emt 0:00:28]} 69. Qa6 {[%emt 0:00:22]} Bb2 {[%emt 0:01:10]} 70. Qc4 {[%emt 0:01:39]} Be5 {[%emt 0:02:52]} 71. Nc7 {[%emt 0:00:52]} Qf7 {[%emt 0:00:20]} 72. Nb5 {[%emt 0:00:27]} Bb2 {[%emt 0:00:22]} 73. Qxa4 {[%emt 0:00:15]} Qxd5+ {[%emt 0:00:09]} 74. Kh2 {[%emt 0:00:02]} Bg7 {[%emt 0:00:38]} 75. Nc7 {[%emt 0:00:33]} Qc5 {[%emt 0:00:26]} 76. Qa2+ {[%emt 0:00:17]} Kh7 {[%emt 0:00:14]} 77. Ne6 {[%emt 0:00:09]} Qb6 {[%emt 0:00:31]} 78. Nxg7 {[%emt 0:00:19]} Kxg7 {[%emt 0:00:05]} 79. Qe2 {[%emt 0:00:08]} Qa7 {[%emt 0:00:13]} 80. Qe3 {[%emt 0:00:06]} Qf7 {[%emt 0:00:15]} 81. Qd4+ {[%emt 0:00:06]} Kh7 {[%emt 0:00:07]} 82. Kh3 {[%emt 0:00:37]} Qf5+ {[%emt 0:00:09]} 83. Kg2 {[%emt 0:00:15]} Qf7 {[%emt 0:00:20]} 84. Qe4 {[%emt 0:00:14]} Kg7 {[%emt 0:00:22]} 85. Qf3 {[%emt 0:00:16]} Qe8 {[%emt 0:00:26]} 86. Qf4 {[%emt 0:00:15]} Qc6+ {[%emt 0:00:14]} 87. Kh2 {[%emt 0:00:04]} Qc5 {[%emt 0:00:30]} 88. Qe3 {[%emt 0:00:10]} Qc7 {[%emt 0:00:42]} 89. Qf4 {[%emt 0:00:51]} Qc5 {[%emt 0:00:17]} 90. Qd2 {[%emt 0:00:51]} Qe7 {[%emt 0:00:48]} 91. Qd4+ {[%emt 0:00:17]} Kh7 {[%emt 0:00:11]} 92. Kg2 {[%emt 0:00:24]} Qb7+ {[%emt 0:00:10]} 93. f3 {[%emt 0:00:01]} Qa6 {[%emt 0:01:36]} 94. Qd7+ {[%emt 0:00:17]} Kg8 {[%emt 0:00:21]} 95. Qd5+ {[%emt 0:00:34]} Kg7 {[%emt 0:00:47]} 96. Qe4 {[%emt 0:00:40]} Qa2+ {[%emt 0:00:31]} 97. Kh3 {[%emt 0:00:13]} Qa6 {[%emt 0:00:29]} 98. Qe7+ {[%emt 0:01:14]} Kg8 {[%emt 0:00:24]} 99. Qe1 {[%emt 0:00:15]} Qd3 {[%emt 0:01:02]} 100. Qe4 {[%emt 0:01:47]} Qa6 {[%emt 0:00:15]} 101. Qc2 {[%emt 0:04:07]} Qe6+ {[%emt 0:00:30]} 102. g4 {[%emt 0:00:00]} Kh8 {[%emt 0:00:34]} 103. Qd2 {[%emt 0:00:00]} Qf6 {[%emt 0:00:25]} 104. Qe2 {[%emt 0:00:00]} Qf4 {[%emt 0:00:36]} 105. Qe4 {[%emt 0:00:00]} Qc1 {[%emt 0:00:14]} 106. Qe8+ {[%emt 0:00:37]} Kg7 {[%emt 0:00:12]} 107. Qe2 {[%emt 0:00:13]} Qh1+ {[%emt 0:00:24]} 108. Kg3 {[%emt 0:00:06]} Qg1+ {[%emt 0:00:19]} 109. Qg2 {[%emt 0:00:29]} Qe1+ {[%emt 0:00:11]} 110. Qf2 {[%emt 0:00:03]} Qe5+ {[%emt 0:00:18]} 111. f4 {[%emt 0:00:16]} Qc3+ {[%emt 0:00:07]} 112. Kh2 {[%emt 0:00:15]} Qb4 {[%emt 0:01:22]} 113. Qa7+ {[%emt 0:00:45]} Kh6 {[%emt 0:01:40]} 114. Qe3 {[%emt 0:01:40]} Kg7 {[%emt 0:00:18]} 115. Kg3 {[%emt 0:00:10]} Qb1 {[%emt 0:00:39]} 116. Qe5+ {[%emt 0:01:16]} Kg8 {[%emt 0:00:22]} 117. Qe3 {[%emt 0:00:08]} Kg7 {[%emt 0:00:13]} 118. h5 {[%emt 0:00:08]} gxh5 {[%emt 0:00:09]} 119. Qe5+ {[%emt 0:00:01]} Kg8 {[%emt 0:00:57]} 120. Qg5+ {[%emt 0:00:27]} Kf8 {[%emt 0:00:25]} 121. gxh5 {[%emt 0:00:40]} Qg1+ {[%emt 0:00:21]} 122. Kh4 {[%emt 0:00:49]} Qh1+ {[%emt 0:01:16]} 123. Kg4 {[%emt 0:00:07]} Qg2+ {[%emt 0:00:31]} 124. Kf5 {[%emt 0:00:01]} Qc2+ {[%emt 0:00:31]} 125. Kf6 {[%emt 0:00:10]} Qc6+ {[%emt 0:00:42]} 126. Ke5 {[%emt 0:00:38]} Qc5+ {[%emt 0:00:18]} 127. Ke4 {[%emt 0:00:25]} Qc4+ {[%emt 0:01:26]} 128. Ke3 {[%emt 0:01:04]} Qc3+ {[%emt 0:01:12]} 129. Ke2 {[%emt 0:00:50]} Qc2+ {[%emt 0:00:13]} 130. Ke1 {[%emt 0:00:40]} Qc1+ {[%emt 0:00:17]} 131. Kf2 {[%emt 0:00:09]} Qd2+ {[%emt 0:00:24]} 132. Kf3 {[%emt 0:00:29]} Qd3+ {[%emt 0:00:41]} 133. Kg2 {[%emt 0:00:41]} Qe2+ {[%emt 0:00:57]} 134. Kh3 {[%emt 0:00:50]} Qf3+ {[%emt 0:01:23]} 135. Kh4 {[%emt 0:00:29]} Qh1+ {[%emt 0:00:14]} 136. Kg3 {[%emt 0:00:26]} Qg1+ {[%emt 0:00:21]} 137. Kf3 {[%emt 0:00:04]} Qf1+ {[%emt 0:00:14]} 138. Kg4 {[%emt 0:01:20]} Qg2+ {[%emt 0:00:10]} 139. Kf5 {[%emt 0:00:18]} Qc2+ {[%emt 0:00:16]} 140. Kf6 {[%emt 0:01:03]} Qc6+ {[%emt 0:00:12]} 141. Ke5 {[%emt 0:00:20]} Qc5+ {[%emt 0:00:24]} 142. Kf6 {[%emt 0:00:15]} Qc6+ {[%emt 0:00:22]} 143. Ke5 {[%emt 0:00:07]} 1/2-1/2

[Event "4NCL Div 2 2024-25"]
[Site "England"]
[Date "2025.04.06"]
[Round "8.7"]
[White "Volovich, Julia"]
[Black "Hansen, Hans-Peter"]
[Result "0-1"]
[Annotator "ChessBase"]
[ECO "D35"]
[WhiteElo "1947"]
[BlackElo "2169"]
[PlyCount "130"]
[EventDate "2024.11.23"]
[EventType "team-tourn"]
[EventCountry "ENG"]
[SourceTitle "playchess.com"]
[Source "ChessBase"]
[SourceQuality "1"]
[TimeControl "40/6000+30:3000+30"]

1. d4 {[%emt 0:10:03]} Nf6 {[%emt 0:10:22]} 2. c4 {[%emt 0:00:06]} e6 {[%emt 0:00:15]} 3. Nc3 {[%emt 0:00:09]} d5 {[%emt 0:00:18]} 4. cxd5 {[%emt 0:00:53]} exd5 {[%emt 0:00:09]} 5. Bg5 {[%emt 0:00:13]} Be7 {[%emt 0:00:07]} 6. e3 {[%emt 0:00:13]} O-O {[%emt 0:00:12]} 7. Bd3 {[%emt 0:00:14]} Re8 {[%emt 0:00:15]} 8. Bxf6 {[%emt 0:19:31]} Bxf6 {[%emt 0:00:06]} 9. Qh5 {[%emt 0:01:48]} g6 {[%emt 0:00:25]} 10. Qxd5 {[%emt 0:01:00]} Bxd4 {[%emt 0:01:03]} 11. Qxd8 {[%emt 0:05:46]} Bxc3+ {[%emt 0:00:08]} 12. bxc3 {[%emt 0:00:07]} Rxd8 {[%emt 0:00:09]} 13. Bc4 {[%emt 0:07:02]} b6 {[%emt 0:18:51]} 14. Nf3 {[%emt 0:09:37]} Ba6 {[%emt 0:01:37]} 15. Bxa6 {[%emt 0:07:15]} Nxa6 {[%emt 0:00:02]} 16. Ke2 {[%emt 0:00:41]} Nc5 {[%emt 0:08:34]} 17. Rhd1 {[%emt 0:06:16]} Ne4 {[%emt 0:04:49]} 18. Rxd8+ {[%emt 0:00:14]} Rxd8 {[%emt 0:00:06]} 19. Rc1 {[%emt 0:00:40]} f5 {[%emt 0:28:52]} 20. Rc2 {[%emt 0:03:16]} Rd5 {[%emt 0:07:52]} 21. c4 {[%emt 0:05:33]} Ra5 {[%emt 0:03:20]} 22. Nd4 {[%emt 0:05:57]} a6 {[%emt 0:06:14]} 23. f3 {[%emt 0:04:11]} Nc5 {[%emt 0:00:41]} 24. Nb3 {[%emt 0:11:49]} Nxb3 {[%emt 0:00:56]} 25. axb3 {[%emt 0:00:05]} Kf7 {[%emt 0:00:19]} 26. Kd3 {[%emt 0:01:49]} Ra1 {[%emt 0:01:47]} 27. Re2 {[%emt 0:01:37]} a5 {[%emt 0:02:11]} 28. Kc3 {[%emt 0:02:01]} Rg1 {[%emt 0:01:08]} 29. Ra2 {[%emt 0:03:04]} Ke6 {[%emt 0:00:54]} 30. Re2 {[%emt 0:00:14]} Kd6 {[%emt 0:03:02]} 31. Rd2+ {[%emt 0:01:58]} Kc6 {[%emt 0:00:05]} 32. Rc2 {[%emt 0:00:06]} Kc5 {[%emt 0:01:51]} 33. Rd2 {[%emt 0:00:22]} c6 {[%emt 0:00:09]} 34. Re2 {[%emt 0:01:23]} Rc1+ {[%emt 0:00:13]} 35. Kb2 {[%emt 0:00:07]} Rh1 {[%emt 0:00:05]} 36. h3 {[%emt 0:00:42]} Kb4 {[%emt 0:00:15]} 37. e4 {[%emt 0:00:38]} fxe4 {[%emt 0:00:16]} 38. fxe4 {[%emt 0:00:14]} Rd1 {[%emt 0:02:31]} 39. e5 {[%emt 0:00:39]} Rd7 {[%emt 0:00:06]} 40. e6 {[%emt 0:01:51]} Re7 {[%emt 0:00:05]} 41. Re5 {[%emt 0:23:21]} a4 {[%emt 0:28:19]} 42. c5 {[%emt 0:03:42]} a3+ {[%emt 0:09:51]} 43. Ka2 {[%emt 0:00:52]} b5 {[%emt 0:00:24]} 44. Re4+ {[%emt 0:06:06]} Kxc5 {[%emt 0:00:52]} 45. Kxa3 {[%emt 0:00:08]} Kd5 {[%emt 0:00:23]} 46. Rh4 {[%emt 0:00:13]} c5 {[%emt 0:02:13]} 47. Kb2 {[%emt 0:01:10]} Kxe6 {[%emt 0:03:24]} 48. Kc3 {[%emt 0:00:22]} Kf5 {[%emt 0:03:59]} 49. Kd3 {[%emt 0:00:59]} h5 {[%emt 0:04:28]} 50. g3 {[%emt 0:01:17]} Rd7+ {[%emt 0:00:49]} 51. Ke3 {[%emt 0:00:55]} Rd1 {[%emt 0:00:43]} 52. Rf4+ {[%emt 0:01:05]} Ke5 {[%emt 0:00:15]} 53. Rf8 {[%emt 0:01:15]} Rb1 {[%emt 0:00:24]} 54. Re8+ {[%emt 0:00:31]} Kf6 {[%emt 0:00:22]} 55. Rc8 {[%emt 0:01:14]} Rxb3+ {[%emt 0:00:07]} 56. Kf4 {[%emt 0:00:19]} Rb4+ {[%emt 0:01:10]} 57. Ke3 {[%emt 0:00:19]} Rc4 {[%emt 0:01:29]} 58. Rc6+ {[%emt 0:00:12]} Kf5 {[%emt 0:00:28]} 59. g4+ {[%emt 0:00:36]} hxg4 {[%emt 0:02:05]} 60. hxg4+ {[%emt 0:00:04]} Kg5 {[%emt 0:00:05]} 61. Kd3 {[%emt 0:00:33]} Rd4+ {[%emt 0:00:37]} 62. Ke3 {[%emt 0:00:33]} Rb4 {[%emt 0:00:33]} 63. Kf3 {[%emt 0:00:46]} Rb3+ {[%emt 0:01:06]} 64. Ke4 {[%emt 0:00:07]} c4 {[%emt 0:00:24]} 65. Kd4 {[%emt 0:00:36]} c3 {[%emt 0:00:46]} 0-1

[Event "4NCL Div 2 2024-25"]
[Site "England"]
[Date "2025.04.06"]
[Round "8.8"]
[White "Brackmann, Hendrik"]
[Black "Chan, Nevil"]
[Result "1-0"]
[Annotator "NA"]
[ECO "B00"]
[WhiteElo "2040"]
[BlackElo "2011"]
[PlyCount "107"]
[EventDate "2024.11.23"]
[EventType "team-tourn"]
[EventCountry "ENG"]
[SourceTitle "playchess.com"]
[Source "ChessBase"]
[SourceQuality "1"]
[TimeControl "40/6000+30:3000+30"]

1. e4 {[%emt 0:10:05]} b6 {[%emt 0:10:35]} 2. d4 {[%emt 0:00:15]} Bb7 {[%emt 0:00:45]} 3. Nc3 {[%emt 0:00:36]} e6 {[%emt 0:00:42]} 4. h4 {[%emt 0:00:36]} h6 {[%emt 0:16:04]} 5. Nge2 {[%emt 0:09:12]} g6 {[%emt 0:00:50]} 6. Be3 {[%emt 0:06:45]} Bg7 {[%emt 0:02:17]} 7. Qd2 {[%emt 0:00:34]} d6 {[%emt 0:03:44]} 8. O-O-O {[%emt 0:01:15]} Nd7 {[%emt 0:04:09]} 9. Kb1 {[%emt 0:13:52]} Ne7 {[%emt 0:02:26]} 10. f4 {[%emt 0:03:07]} Nf6 {[%emt 0:15:20]} 11. Ng3 {[%emt 0:03:51]} d5 {[%emt 0:04:20]} 12. e5 {[%emt 0:02:09]} Ng4 {[%emt 0:01:48]} 13. h5 {[%emt 0:01:10]} Nxe3 {[%emt 0:02:21]} 14. Qxe3 {[%emt 0:00:13]} Qd7 {[%emt 0:12:40]} 15. Bb5 {[%emt 0:06:59]} c6 {[%emt 0:00:15]} 16. Bd3 {[%emt 0:00:04]} O-O-O {[%emt 0:00:34]} 17. Nge2 {[%emt 0:01:52]} Rdg8 {[%emt 0:02:13]} 18. g4 {[%emt 0:02:16]} Kb8 {[%emt 0:06:03]} 19. Ng3 {[%emt 0:02:44]} Bc8 {[%emt 0:06:24]} 20. a4 {[%emt 0:05:12]} a5 {[%emt 0:00:44]} 21. Rh3 {[%emt 0:02:57]} Ka7 {[%emt 0:00:28]} 22. Qe2 {[%emt 0:02:51]} Bf8 {[%emt 0:01:08]} 23. Rf1 {[%emt 0:01:59]} Qe8 {[%emt 0:03:59]} 24. Nd1 {[%emt 0:03:04]} Bd7 {[%emt 0:00:43]} 25. Ne3 {[%emt 0:02:22]} c5 {[%emt 0:03:51]} 26. dxc5 {[%emt 0:03:47]} bxc5 {[%emt 0:00:09]} 27. Qd2 {[%emt 0:00:36]} Qd8 {[%emt 0:03:49]} 28. Bb5 {[%emt 0:07:36]} Bxb5 {[%emt 0:05:17]} 29. axb5 {[%emt 0:00:08]} Qb6 {[%emt 0:00:06]} 30. c4 {[%emt 0:00:56]} d4 {[%emt 0:00:39]} 31. Nc2 {[%emt 0:01:46]} gxh5 {[%emt 0:00:23]} 32. gxh5 {[%emt 0:03:25]} Nf5 {[%emt 0:00:12]} 33. Ne4 {[%emt 0:00:10]} Be7 {[%emt 0:00:23]} 34. Ra3 {[%emt 0:01:32]} Kb7 {[%emt 0:00:42]} 35. Rxa5 {[%emt 0:05:10]} Ra8 {[%emt 0:00:09]} 36. Rxa8 {[%emt 0:00:22]} Rxa8 {[%emt 0:00:16]} 37. Qg2 {[%emt 0:00:11]} Kc7 {[%emt 0:01:44]} 38. Nxc5 {[%emt 0:01:43]} Bxc5 {[%emt 0:00:41]} 39. Qxa8 {[%emt 0:00:36]} d3 {[%emt 0:00:10]} 40. Na1 {[%emt 0:04:02]} Ne3 {[%emt 0:00:31]} 41. Rg1 {[%emt 0:37:49]} d2 {[%emt 0:39:54]} 42. Qa4 {[%emt 0:00:39]} Qa7 {[%emt 0:00:30]} 43. Qb3 {[%emt 0:02:01]} Qb7 {[%emt 0:00:59]} 44. Qd3 {[%emt 0:02:24]} d1=Q+ {[%emt 0:02:02]} 45. Rxd1 {[%emt 0:00:50]} Nxd1 {[%emt 0:00:10]} 46. Qxd1 {[%emt 0:00:52]} Qe4+ {[%emt 0:00:12]} 47. Qc2 {[%emt 0:01:35]} Qe1+ {[%emt 0:02:08]} 48. Qc1 {[%emt 0:00:31]} Qxc1+ {[%emt 0:02:35]} 49. Kxc1 {[%emt 0:00:27]} Be3+ {[%emt 0:00:02]} 50. Kc2 {[%emt 0:00:39]} Bxf4 {[%emt 0:00:07]} 51. b4 {[%emt 0:01:38]} Bxe5 {[%emt 0:00:10]} 52. Nb3 {[%emt 0:00:13]} Kb6 {[%emt 0:02:42]} 53. Kd3 {[%emt 0:00:45]} Bg3 {[%emt 0:01:48]} 54. Nd4 {[%emt 0:02:16]} 1-0

[Event "4NCL Div 2 2024-25"]
[Site "England"]
[Date "2025.04.06"]
[Round "8.9"]
[White "Fava, Lorenzo"]
[Black "Gallana, Marco"]
[Result "1-0"]
[Annotator "ChessBase"]
[ECO "A16"]
[WhiteElo "2269"]
[BlackElo "2216"]
[PlyCount "67"]
[EventDate "2024.11.23"]
[EventType "team-tourn"]
[EventCountry "ENG"]
[SourceTitle "playchess.com"]
[Source "ChessBase"]
[SourceQuality "1"]
[TimeControl "40/6000+30:3000+30"]

1. c4 {[%emt 0:10:12]} Nf6 {[%emt 0:10:45]} 2. Nc3 {[%emt 0:00:27]} g6 {[%emt 0:00:22]} 3. Nf3 {[%emt 0:01:30]} Bg7 {[%emt 0:00:13]} 4. e4 {[%emt 0:00:04]} e5 {[%emt 0:02:03]} 5. Nxe5 {[%emt 0:00:37]} O-O {[%emt 0:00:42]} 6. Nf3 {[%emt 0:00:27]} Re8 {[%emt 0:00:26]} 7. d3 {[%emt 0:00:05]} d5 {[%emt 0:00:51]} 8. cxd5 {[%emt 0:00:10]} Nxd5 {[%emt 0:00:11]} 9. Bd2 {[%emt 0:00:10]} Bg4 {[%emt 0:01:04]} 10. Be2 {[%emt 0:01:00]} Bxf3 {[%emt 0:00:50]} 11. gxf3 {[%emt 0:00:24]} Nb4 {[%emt 0:00:10]} 12. Be3 {[%emt 0:00:40]} N8c6 {[%emt 0:01:24]} 13. a3 {[%emt 0:00:11]} Na6 {[%emt 0:00:10]} 14. h4 {[%emt 0:00:22]} Nd4 {[%emt 0:04:40]} 15. h5 {[%emt 0:04:38]} Nc5 {[%emt 0:03:37]} 16. Kf1 {[%emt 0:00:49]} Ncb3 {[%emt 0:10:04]} 17. Rb1 {[%emt 1:27:14]} Qd6 {[%emt 0:07:43]} 18. f4 {[%emt 0:00:00]} Rad8 {[%emt 0:03:45]} 19. h6 {[%emt 0:00:00]} Bf8 {[%emt 0:09:32]} 20. Nb5 {[%emt 0:00:00]} Qd7 {[%emt 0:13:37]} 21. Nxd4 {[%emt 0:00:00]} Nxd4 {[%emt 0:00:09]} 22. f3 {[%emt 0:00:00]} Bc5 {[%emt 0:09:25]} 23. b4 {[%emt 0:00:00]} Bb6 {[%emt 0:00:13]} 24. Qd2 {[%emt 0:00:00]} Qd6 {[%emt 0:11:49]} 25. a4 {[%emt 0:00:00]} Ne6 {[%emt 0:01:16]} 26. Rh4 {[%emt 0:00:00]} Bxe3 {[%emt 0:08:53]} 27. Qxe3 {[%emt 0:00:00]} f5 {[%emt 0:00:39]} 28. Kf2 {[%emt 0:00:00]} Rf8 {[%emt 0:02:38]} 29. e5 {[%emt 0:00:00]} Qe7 {[%emt 0:00:08]} 30. Rhh1 {[%emt 0:01:00]} Rd4 {[%emt 0:00:13]} 31. Bd1 {[%emt 0:00:13]} Rfd8 {[%emt 0:02:25]} 32. Bb3 {[%emt 0:00:05]} Rxd3 {[%emt 0:01:00]} 33. Qc5 {[%emt 0:00:53]} Kf8 {[%emt 0:03:00]} 34. Bxe6 {[%emt 0:00:27]} 1-0

[Event "4NCL Div 2 2024-25"]
[Site "England"]
[Date "2025.04.06"]
[Round "8.10"]
[White "Mazurkiewicz, Michal"]
[Black "Sterck, Arno"]
[Result "1-0"]
[Annotator "ChessBase"]
[ECO "C44"]
[WhiteElo "2259"]
[BlackElo "2251"]
[PlyCount "95"]
[EventDate "2024.11.23"]
[EventType "team-tourn"]
[EventCountry "ENG"]
[SourceTitle "playchess.com"]
[Source "ChessBase"]
[SourceQuality "1"]
[TimeControl "40/6000+30:3000+30"]

1. e4 {[%emt 0:10:10]} e5 {[%emt 0:10:02]} 2. Nf3 {[%emt 0:00:06]} Nc6 {[%emt 0:00:04]} 3. d3 {[%emt 0:01:45]} Nf6 {[%emt 0:00:34]} 4. g3 {[%emt 0:00:07]} d5 {[%emt 0:01:33]} 5. exd5 {[%emt 0:00:20]} Nxd5 {[%emt 0:00:09]} 6. Bg2 {[%emt 0:00:08]} Bg4 {[%emt 0:02:31]} 7. h3 {[%emt 0:00:08]} Be6 {[%emt 0:00:11]} 8. O-O {[%emt 0:00:45]} Qd7 {[%emt 0:00:06]} 9. Ng5 {[%emt 0:00:28]} Bf5 {[%emt 0:00:32]} 10. g4 {[%emt 0:01:21]} Bg6 {[%emt 0:00:06]} 11. Nc3 {[%emt 0:00:18]} Nxc3 {[%emt 0:00:36]} 12. bxc3 {[%emt 0:00:03]} h5 {[%emt 0:06:58]} 13. Rb1 {[%emt 0:21:28]} f6 {[%emt 0:00:09]} 14. Ne4 {[%emt 0:01:15]} hxg4 {[%emt 0:00:04]} 15. hxg4 {[%emt 0:06:45]} Rh4 {[%emt 0:00:09]} 16. Ng3 {[%emt 0:04:24]} Bc5 {[%emt 0:35:25]} 17. Rxb7 {[%emt 0:15:36]} O-O-O {[%emt 0:04:27]} 18. Rb5 {[%emt 0:02:59]} Bb6 {[%emt 0:00:20]} 19. Qf3 {[%emt 0:12:05]} e4 {[%emt 0:00:44]} 20. Nxe4 {[%emt 0:00:34]} Bxe4 {[%emt 0:00:34]} 21. Qxe4 {[%emt 0:00:09]} Rxg4 {[%emt 0:00:09]} 22. Qf3 {[%emt 0:00:50]} Qe6 {[%emt 0:09:29]} 23. d4 {[%emt 0:01:39]} Ne7 {[%emt 0:00:05]} 24. Bd2 {[%emt 0:03:24]} c6 {[%emt 0:05:04]} 25. Re1 {[%emt 0:02:20]} Qxe1+ {[%emt 0:01:25]} 26. Bxe1 {[%emt 0:00:01]} Rxg2+ {[%emt 0:00:11]} 27. Kxg2 {[%emt 0:00:17]} cxb5 {[%emt 0:00:04]} 28. Bd2 {[%emt 0:00:40]} Nd5 {[%emt 0:08:35]} 29. a4 {[%emt 0:00:17]} a6 {[%emt 0:00:41]} 30. axb5 {[%emt 0:00:36]} axb5 {[%emt 0:00:01]} 31. Qd3 {[%emt 0:00:39]} Nc7 {[%emt 0:00:14]} 32. Bf4 {[%emt 0:24:53]} Rd5 {[%emt 0:00:37]} 33. Qe4 {[%emt 0:00:00]} f5 {[%emt 0:00:16]} 34. Qf3 {[%emt 0:00:00]} Rd7 {[%emt 0:01:58]} 35. Bxc7 {[%emt 0:00:00]} Rxc7 {[%emt 0:00:03]} 36. Qxf5+ {[%emt 0:00:00]} Kb7 {[%emt 0:00:13]} 37. Qxb5 {[%emt 0:00:00]} Rxc3 {[%emt 0:00:37]} 38. Qd7+ {[%emt 0:00:00]} Ka6 {[%emt 0:00:36]} 39. Kf1 {[%emt 0:00:00]} Rc4 {[%emt 0:01:35]} 40. d5 {[%emt 0:00:00]} Rf4 {[%emt 0:01:52]} 41. Qc8+ {[%emt 0:39:47]} Kb5 {[%emt 0:52:52]} 42. Qc6+ {[%emt 0:00:11]} Ka5 {[%emt 0:00:50]} 43. c4 {[%emt 0:00:19]} Rxf2+ {[%emt 0:00:10]} 44. Ke1 {[%emt 0:00:03]} Rb2 {[%emt 0:00:46]} 45. c5 {[%emt 0:00:22]} Ba7 {[%emt 0:00:13]} 46. Qa8 {[%emt 0:00:08]} Ka6 {[%emt 0:00:10]} 47. Qc6+ {[%emt 0:00:50]} Ka5 {[%emt 0:00:03]} 48. d6 {[%emt 0:00:11]} 1-0